bitfinex/quotes_BTCUSD_20260315
["timestamp","ask_amount","ask_price","bid_price","bid_amount"]
[1773534952645,0.08640238,70995.0,70988.0,0.0014]
[1773534952847,0.08640238,70995.0,70978.0,0.0818765]
[1773534952848,0.0704265,70996.0,70977.0,0.07079649]
[1773534953027,0.07078498,70996.0,70978.0,0.0818765]
[1773534953213,0.07078498,70996.0,70980.0,0.0818765]
[1773534954450,0.07078498,70996.0,70988.0,0.0002]
[1773534954673,0.037538,70995.0,70989.0,0.0014]
[1773534955474,0.07042848,70994.0,70989.0,0.0014]
[1773534957613,0.07043047,70992.0,70989.0,0.0014]
[1773534958896,0.07025152,70992.0,70989.0,0.0014]
[1773534961346,0.05942855,71010.0,70991.0,0.0818765]
[1773534961495,0.05942855,71001.0,70989.0,0.07183317]
[1773534961698,0.05952025,71001.0,70989.0,0.07185381]
[1773534963248,0.07042253,71000.0,70989.0,0.07185381]
[1773534965896,0.07042253,71000.0,70989.0,0.0014]
[1773534967427,0.21002444,71000.0,70989.0,0.0014]
[1773534967941,0.21002444,71000.0,70989.0,0.0016]
[1773534968139,0.13960191,70999.0,70989.0,0.0016]
[1773534969057,0.07042253,71000.0,70989.0,0.0016]
[1773534969258,0.21011096,71000.0,70989.0,0.0016]
[1773534970070,0.13968843,70999.0,70989.0,0.0016]
[1773534971097,0.13968843,70998.0,70989.0,0.0016]
[1773534971302,0.13968843,70997.0,70989.0,0.0016]
[1773534971524,0.13968843,70996.0,70989.0,0.0016]
[1773534971820,0.07042253,71000.0,70989.0,0.0016]
[1773534972120,0.13977839,70999.0,70989.0,0.0016]
[1773534972348,0.13977839,70998.0,70989.0,0.0016]
[1773534972518,0.13977839,70997.0,70989.0,0.0016]
[1773534972721,0.13977839,70996.0,70989.0,0.0016]
[1773534972921,0.13977839,70995.0,70989.0,0.0016]
[1773534973134,0.13977839,70994.0,70989.0,0.0016]
[1773534973328,0.07042253,71000.0,70989.0,0.0016]
[1773534973546,0.13983963,70999.0,70989.0,0.0016]
[1773534973704,0.13983963,70998.0,70989.0,0.0016]
[1773534973901,0.0704265,70996.0,70989.0,0.0016]
[1773534974103,0.13983963,70995.0,70989.0,0.0016]
[1773534974322,0.13983963,70994.0,70989.0,0.0016]
[1773534974523,0.13983963,70993.0,70989.0,0.0016]
[1773534974724,0.0704265,70996.0,70989.0,0.0016]
[1773534974924,0.13988288,70995.0,70989.0,0.0002]
[1773534975125,0.13988288,70994.0,70989.0,0.0002]
[1773534975378,0.13988288,70993.0,70989.0,0.0002]
[1773534975528,0.0704265,70996.0,70989.0,0.0002]
[1773534975735,0.13992772,70995.0,70989.0,0.0002]
[1773534975935,0.07042947,70993.0,70989.0,0.0002]
[1773534976228,0.13998371,70992.0,70989.0,0.0002]
[1773534976430,0.07042947,70993.0,70989.0,0.0002]
[1773534976635,0.13998469,70992.0,70989.0,0.0002]
[1773534976859,0.07042947,70993.0,70989.0,0.0002]
[1773534977053,0.13999306,70992.0,70989.0,0.0002]
[1773534977256,0.13999306,70991.0,70989.0,0.0002]
[1773534977472,0.13999306,70990.0,70989.0,0.0002]
[1773534977671,0.13999306,70990.0,70987.0,0.0014]
[1773534977877,0.00010748,70990.0,70986.0,0.0014]
[1773534978277,0.00010748,70990.0,70985.0,0.07043719]
[1773534978475,0.00010748,70990.0,70985.0,0.07183719]
[1773534979347,0.00010748,70990.0,70985.0,0.0014]
[1773534979742,0.00010748,70990.0,70982.0,0.07044039]
[1773534979964,0.00010748,70990.0,70983.0,0.0014]
[1773534980512,0.00010748,70990.0,70984.0,0.0014]
[1773534980851,0.00010748,70990.0,70982.0,0.07044039]
[1773534981063,0.00010748,70990.0,70983.0,0.0014]
[1773534981464,0.00010748,70990.0,70984.0,0.0014]
[1773534981869,0.00010748,70990.0,70982.0,0.07044039]
[1773534982069,0.00010748,70990.0,70983.0,0.0014]
[1773534983047,0.00010748,70990.0,70984.0,0.0014]
[1773534983241,0.14012063,70989.0,70984.0,0.0014]
[1773534983446,0.00010748,70990.0,70982.0,0.07044039]
[1773534983731,0.14012526,70989.0,70982.0,0.07044039]
[1773534983958,0.00010748,70990.0,70983.0,0.0014]
[1773534984231,0.00010748,70990.0,70982.0,0.07044039]
[1773534984451,0.00010748,70990.0,70984.0,0.0014]
[1773534984818,0.00010748,70990.0,70982.0,0.07044039]
[1773534984819,0.00010748,70990.0,70985.0,0.0014]
[1773534985367,0.00010748,70990.0,70980.0,0.0014]
[1773534985528,0.00010748,70990.0,70966.0,0.07079556]
[1773534985529,0.11195703,70987.0,70966.0,0.07079556]
[1773534985715,0.07043443,70988.0,70966.0,0.00034]
[1773534985716,0.05952025,70980.0,70966.0,0.00034]
[1773534985921,0.08725303,70978.0,70966.0,0.00034]
[1773534986097,0.1401321,70977.0,70966.0,0.00034]
[1773534986299,0.1401321,70976.0,70966.0,0.07079575]
[1773534986496,0.05952025,70980.0,70966.0,0.07079575]
[1773534986497,0.1401321,70975.0,70968.0,0.08138207]
[1773534986735,0.1401321,70974.0,70968.0,0.08138207]
[1773534986917,0.06092025,70980.0,70968.0,0.08138207]
[1773534987094,0.13995184,70979.0,70969.0,0.0002]
[1773534987303,0.13995184,70978.0,70969.0,0.0002]
[1773534987535,0.13995184,70977.0,70969.0,0.0002]
[1773534987729,0.07044484,70978.0,70969.0,0.0002]
[1773534987730,0.13995184,70976.0,70969.0,0.0002]
[1773534987958,0.07044484,70978.0,70969.0,0.0002]
[1773534990366,0.07044337,70979.0,70969.0,0.07065308]
[1773534990725,0.20066605,70980.0,70969.0,0.07065308]
[1773534990928,0.12996281,70980.0,70969.0,0.07065308]
[1773534991675,0.13006057,70990.0,70970.0,0.08127207]
[1773534991896,0.0014,70989.0,70970.0,0.08127207]
[1773534992105,0.00010748,70990.0,70971.0,0.08127207]
[1773534993291,0.00010748,70990.0,70973.0,0.08127207]
[1773534993484,0.00010748,70990.0,70975.0,0.08127207]
[1773534994252,0.05962773,70990.0,70975.0,0.08127207]
[1773534994881,0.00010748,70990.0,70975.0,0.08127207]
[1773534995297,0.00010748,70990.0,70976.0,0.07044634]
[1773534995479,0.00010748,70990.0,70976.0,0.15171841]
[1773534995688,0.00010748,70990.0,70977.0,0.0014]
[1773534996003,0.00010748,70990.0,70977.0,0.08267207]
[1773534997420,0.05962773,70990.0,70978.0,0.07044436]
[1773534997816,0.05962773,70990.0,70979.0,0.0014]
[1773534998146,0.05962773,70990.0,70980.0,0.0014]
[1773534999026,0.05962773,70990.0,70978.0,0.07044436]
[1773534999245,0.05962773,70990.0,70979.0,0.0014]
[1773534999444,0.07043344,70989.0,70979.0,0.07184304]
[1773534999647,0.07043344,70989.0,70980.0,0.0014]
[1773535000176,0.08725303,70988.0,70978.0,0.0014]
[1773535000528,0.07043344,70989.0,70978.0,0.0014]
[1773535001375,0.08725303,70988.0,70978.0,0.0014]
[1773535001522,0.07043543,70987.0,70978.0,0.0014]
[1773535008157,0.07043543,70988.0,70978.0,0.0014]
[1773535009413,0.07043543,70988.0,70976.0,0.15171822]
[1773535009616,0.07043543,70988.0,70976.0,0.15311822]
[1773535010016,0.00032749,70990.0,70976.0,0.07184615]
[1773535010220,0.07078028,70995.0,70977.0,0.08669007]
[1773535010221,0.07064956,70993.0,70977.0,0.08669007]
[1773535010426,0.07064956,70993.0,70977.0,0.08704855]
[1773535011462,0.21060713,70993.0,70977.0,0.08704855]
[1773535012657,0.21060713,70993.0,70978.0,0.07044436]
[1773535012852,0.21060713,70993.0,70979.0,0.08491182]
[1773535014422,0.07064956,70993.0,70979.0,0.08491182]
[1773535016472,0.07064956,70993.0,70980.0,0.07184237]
[1773535017523,0.00035213,70995.0,70983.0,0.08491182]
[1773535018469,0.00035213,70995.0,70985.0,0.08491182]
[1773535021174,0.00035213,70995.0,70986.0,0.07043642]
[1773535021536,0.00057214,70995.0,70986.0,0.07043642]
[1773535024694,0.00057214,70995.0,70984.0,0.07043642]
[1773535026086,0.00057214,70995.0,70984.0,0.15534824]
[1773535028035,0.00057214,70995.0,70984.0,0.07043642]
[1773535028315,0.00057214,70995.0,70985.0,0.08491182]
[1773535030667,0.00057214,70995.0,70986.0,0.07043642]
[1773535031072,0.00057214,70995.0,70986.0,0.15534824]
[1773535033378,0.00057214,70995.0,70986.0,0.07043642]
[1773535035020,0.00057214,70995.0,70986.0,0.0014]
[1773535036070,0.07099963,70995.0,70986.0,0.0014]
[1773535036684,0.21105478,70995.0,70986.0,0.0014]
[1773535036850,0.07099963,70995.0,70986.0,0.0014]
[1773535037256,0.07099963,70995.0,70987.0,0.07043543]
[1773535037420,0.21105461,70995.0,70987.0,0.07043543]
[1773535037622,0.07099963,70995.0,70987.0,0.07043543]
[1773535038725,0.21106951,70995.0,70987.0,0.07043543]
[1773535039029,0.07099963,70995.0,70987.0,0.07043543]
[1773535039745,0.21109017,70995.0,70987.0,0.07043543]
[1773535039920,0.14009054,70994.0,70987.0,0.07043543]
[1773535040120,0.07099963,70995.0,70987.0,0.07043543]
[1773535040350,0.1401153,70994.0,70987.0,0.07043543]
[1773535043176,0.1401153,70993.0,70987.0,0.07043543]
[1773535043378,0.07099963,70995.0,70987.0,0.07043543]
[1773535043579,0.14014394,70994.0,70987.0,0.07043543]
[1773535043757,0.14014394,70993.0,70987.0,0.07043543]
[1773535043956,0.07099963,70995.0,70987.0,0.07043543]
[1773535044156,0.14014313,70994.0,70986.0,0.07203641]
[1773535044360,0.14014313,70993.0,70986.0,0.07203641]
[1773535044573,0.07099963,70995.0,70986.0,0.07203641]
[1773535044811,0.14016959,70994.0,70986.0,0.07203641]
[1773535045023,0.14016959,70993.0,70986.0,0.07203641]
[1773535045312,0.07099963,70995.0,70986.0,0.07063641]
[1773535045494,0.14017248,70994.0,70986.0,0.07063641]
[1773535045694,0.14017248,70993.0,70986.0,0.07063641]
[1773535045862,0.07099963,70995.0,70986.0,0.07063641]
[1773535046062,0.14017249,70994.0,70986.0,0.07063641]
[1773535046324,0.14017249,70993.0,70986.0,0.07063641]
[1773535046467,0.07099963,70995.0,70986.0,0.07063641]
[1773535046668,0.14017578,70994.0,70986.0,0.07063641]
[1773535046868,0.14017578,70993.0,70986.0,0.07063641]
[1773535047092,0.07099963,70995.0,70986.0,0.07063641]
[1773535047290,0.1401787,70994.0,70986.0,0.07063641]
[1773535047566,0.12220755,70993.0,70986.0,0.07063641]
[1773535047767,0.07041774,71005.0,70987.0,0.08205362]
[1773535048053,0.07041774,71005.0,70990.0,0.05951654]
[1773535048179,0.07041774,71005.0,70991.0,0.08345362]
[1773535048180,0.00046051,71003.0,70991.0,0.08345362]
[1773535049699,0.00046051,71003.0,70992.0,0.07043047]
[1773535049899,0.00046051,71003.0,70993.0,0.08205362]
[1773535050132,0.00028134,71003.0,70993.0,0.08205362]
[1773535050333,0.07041683,71006.0,70993.0,0.08205362]
[1773535050570,0.07041587,71007.0,70993.0,0.08205362]
[1773535052053,0.07041587,71007.0,70995.0,0.08205362]
[1773535053257,0.00022001,71007.0,70995.0,0.08205362]
[1773535054164,0.00022001,71007.0,70997.0,0.08205362]
[1773535054314,0.00022001,71007.0,70998.0,0.0014]
[1773535054925,0.00022001,71008.0,70999.0,0.08205362]
[1773535055371,0.00022001,71008.0,70995.0,0.05624301]
[1773535055575,0.00022001,71008.0,71000.0,0.0014]
[1773535056472,0.00022001,71008.0,71001.0,0.07042154]
[1773535057557,0.00010155,71008.0,71001.0,0.07042154]
[1773535064196,0.00040011,71013.0,71001.0,0.07042154]
[1773535064197,0.07040176,71021.0,71002.0,0.08205362]
[1773535064500,0.07040373,71019.0,71002.0,0.08205362]
[1773535065376,0.07040373,71019.0,71003.0,0.07041955]
[1773535066243,0.0704027,71020.0,71003.0,0.07041955]
[1773535066542,0.0704027,71020.0,71004.0,0.08205362]
[1773535067243,0.07040397,71019.0,71004.0,0.08205362]
[1773535067419,0.00022001,71008.0,71005.0,0.07041757]
[1773535067627,0.07040397,71019.0,71006.0,0.0014]
[1773535073149,0.08460694,71020.0,71007.0,0.07041559]
[1773535073860,0.15500981,71020.0,71007.0,0.07041559]
[1773535077128,0.07040383,71019.0,71007.0,0.07041559]
[1773535077328,0.15500981,71020.0,71007.0,0.07041559]
[1773535083206,0.07040287,71020.0,71007.0,0.07041559]
[1773535083889,0.00040011,71023.0,71007.0,0.07041559]
[1773535083890,0.00040011,71023.0,71008.0,0.08373713]
[1773535084062,0.00040011,71023.0,71011.0,0.08373713]
[1773535084682,0.00040011,71023.0,71012.0,0.0014]
[1773535087406,0.00040011,71023.0,71013.0,0.07040964]
[1773535092899,0.00040011,71023.0,71013.0,0.07140964]
[1773535094110,0.00040011,71023.0,71013.0,0.07040964]
[1773535095715,0.00040011,71023.0,71014.0,0.0014]
[1773535098802,0.00040011,71023.0,71015.0,0.07040766]
[1773535099010,0.00022001,71024.0,71015.0,0.07040766]
[1773535099219,0.07039459,71029.0,71015.0,0.07040766]
[1773535100746,0.07080439,71029.0,71015.0,0.07040766]
[1773535101105,0.0004098,71029.0,71015.0,0.07040766]
[1773535102161,0.00022001,71031.0,71015.0,0.07040766]
[1773535102316,0.00032774,71031.0,71016.0,0.460375]
[1773535103166,0.00032774,71031.0,71017.0,0.07040567]
[1773535105071,0.00032774,71031.0,71009.0,0.07041283]
[1773535105072,0.07039477,71028.0,71009.0,0.07041283]
[1773535105297,0.10297739,71027.0,71010.0,0.0014]
[1773535105467,0.10297739,71027.0,71009.0,0.07041283]
[1773535105675,0.10297739,71027.0,71010.0,0.0014]
[1773535106217,0.10297739,71027.0,71011.0,0.0014]
[1773535107161,0.07039675,71026.0,71008.0,0.0704136]
[1773535107498,0.10206039,71025.0,71009.0,0.0014]
[1773535107898,0.10206039,71025.0,71010.0,0.0014]
[1773535108796,0.10206039,71025.0,71008.0,0.0704136]
[1773535108995,0.10206039,71025.0,71010.0,0.0014]
[1773535109321,0.10206039,71023.0,71008.0,0.0704136]
[1773535109477,0.10206039,71023.0,71010.0,0.0014]
[1773535109817,0.10206039,71023.0,71009.0,0.0002]
[1773535109966,0.10206039,71023.0,71010.0,0.0014]
[1773535111315,0.07040072,71022.0,71012.0,0.07041063]
[1773535111500,0.10136039,71021.0,71012.0,0.07041063]
[1773535116310,0.07040246,71021.0,71012.0,0.07041063]
[1773535116516,0.09717746,71020.0,71012.0,0.07041063]
[1773535117322,0.07039873,71024.0,71012.0,0.07041063]
[1773535118307,0.07039873,71024.0,71012.0,0.07061063]
[1773535118543,0.09717746,71023.0,71013.0,0.0014]
[1773535118811,0.09717746,71023.0,71014.0,0.0014]
[1773535124454,0.07040072,71022.0,71014.0,0.0014]
[1773535124635,0.0833414,71021.0,71014.0,0.0014]
[1773535127411,0.15374375,71021.0,71014.0,0.0014]
[1773535129241,0.0833414,71020.0,71014.0,0.0014]
[1773535130944,0.0833414,71020.0,71011.0,0.07041162]
[1773535131145,0.0833414,71020.0,71012.0,0.0014]
[1773535132331,0.0704034,71020.0,71012.0,0.07181015]
[1773535132558,0.08197269,71019.0,71013.0,0.0014]
[1773535132923,0.08197269,71019.0,71012.0,0.03574524]
[1773535133129,0.08197269,71019.0,71012.0,0.0014]
[1773535133748,0.08197269,71019.0,71012.0,0.07181015]
[1773535136608,0.08197269,71019.0,71012.0,0.07201015]
[1773535137926,0.08197269,71019.0,71001.0,0.08735846]
[1773535137927,0.07040379,71019.0,71004.0,0.07061802]
[1773535138094,0.08337269,71018.0,71004.0,0.0002]
[1773535138240,0.08337269,71018.0,71001.0,0.0002]
[1773535138441,0.08197269,71016.0,71001.0,0.0016]
[1773535140871,0.08197269,71014.0,71001.0,0.0002]
[1773535142291,0.05947076,71012.0,71001.0,0.0002]
[1773535142609,0.08197269,71011.0,71001.0,0.0002]
[1773535143220,0.07041261,71010.0,71001.0,0.07062138]
[1773535145125,0.07041261,71010.0,71002.0,0.000388]
[1773535152174,0.07041261,71010.0,71001.0,0.0014]
[1773535153119,0.07041261,71010.0,70998.0,0.07042451]
[1773535153320,0.07041261,71010.0,71000.0,0.07042253]
[1773535153814,0.07041261,71010.0,71001.0,0.0014]
[1773535155785,0.07041261,71010.0,71000.0,0.0014]
[1773535156631,0.07041261,71010.0,70998.0,0.07042451]
[1773535156799,0.07041261,71010.0,71001.0,0.0014]
[1773535157609,0.07041261,71010.0,70998.0,0.07042451]
[1773535157793,0.07041261,71010.0,71001.0,0.0014]
[1773535159136,0.07041261,71010.0,70998.0,0.07042451]
[1773535159341,0.07041261,71010.0,71001.0,0.0014]
[1773535159540,0.07041261,71010.0,71001.0,0.0016]
[1773535161149,0.07023349,71010.0,71001.0,0.0016]
[1773535161350,0.07023349,71010.0,71001.0,0.0017176]
[1773535163083,0.07040304,71020.0,71001.0,0.07213848]
[1773535163282,0.07062435,71019.0,71002.0,0.08323115]
[1773535164342,0.07062435,71019.0,71002.0,0.08334875]
[1773535165190,0.07062435,71019.0,71003.0,0.07041955]
[1773535165393,0.07062435,71019.0,71004.0,0.08323115]
[1773535166393,0.07062435,71019.0,71004.0,0.08334875]
[1773535167485,0.07062435,71019.0,71005.0,0.15364872]
[1773535167653,0.07062435,71019.0,71006.0,0.08323115]
[1773535167867,0.07062435,71019.0,71007.0,0.0014]
[1773535168079,0.07040304,71020.0,71008.0,0.08323115]
[1773535168080,0.07040324,71020.0,71008.0,0.08323115]
[1773535168319,0.07062182,71021.0,71008.0,0.08323115]
[1773535168617,0.04529079,71021.0,71008.0,0.08323115]
[1773535169036,0.02802343,71023.0,71008.0,0.08323115]
[1773535169389,0.02802343,71023.0,71010.0,0.08323115]
[1773535172351,0.02802343,71023.0,71011.0,0.15364277]
[1773535173154,0.07061964,71024.0,71011.0,0.15364277]
[1773535173319,0.07061964,71024.0,71012.0,0.08323115]
[1773535173519,0.01500678,71024.0,71014.0,0.08323115]
[1773535173871,0.07061768,71026.0,71014.0,0.08323115]
[1773535174163,0.07061579,71027.0,71014.0,0.08323115]
[1773535174164,0.00022001,71027.0,71014.0,0.08323115]
[1773535174322,0.07039485,71028.0,71014.0,0.08323115]
[1773535175139,0.07039485,71028.0,71015.0,0.07040766]
[1773535175325,0.07039485,71028.0,71015.0,0.15363881]
[1773535175521,0.00022001,71029.0,71015.0,0.07040766]
[1773535176230,0.07061383,71029.0,71015.0,0.07040766]
[1773535188034,0.00025093,71031.0,71015.0,0.07040766]
[1773535188235,0.070602,71041.0,71021.0,0.42189371]
[1773535188446,0.15811811,71041.0,71022.0,0.0014]
[1773535189423,0.00022001,71037.0,71022.0,0.0014]
[1773535190264,0.00022001,71044.0,71023.0,0.07039972]
[1773535190475,0.07036516,71058.0,71035.0,0.460375]
[1773535190683,0.07036618,71057.0,71040.0,0.05949676]
[1773535191020,0.07036516,71058.0,71041.0,0.0014]
[1773535191425,0.07036621,71057.0,71041.0,0.0016436]
[1773535192189,0.07036621,71057.0,71042.0,0.0703809]
[1773535196013,0.00175179,71065.0,71042.0,0.0703809]
[1773535196014,0.09396258,71071.0,71044.0,0.05949676]
[1773535196216,0.07035141,71072.0,71051.0,0.07037198]
[1773535196217,0.07035515,71068.0,71051.0,0.07037198]
[1773535196413,0.07035515,71068.0,71052.0,0.0014]
[1773535196612,0.16431773,71068.0,71052.0,0.0014]
[1773535197357,0.16467669,71068.0,71052.0,0.0014]
[1773535197558,0.09432154,71068.0,71052.0,0.0014]
[1773535197807,0.07035141,71072.0,71052.0,0.0014]
[1773535197808,0.00049,71077.0,71059.0,0.00188983]
[1773535197971,0.00059765,71077.0,71060.0,0.0014]
[1773535198181,0.00059765,71077.0,71062.0,0.07036109]
[1773535198907,0.07033666,71087.0,71062.0,0.07036109]
[1773535198908,0.09396258,71090.0,71069.0,0.0018924]
[1773535199050,0.09396258,71090.0,71070.0,0.0014]
[1773535200390,0.09396258,71088.0,71071.0,0.07035218]
[1773535202092,0.05472795,71088.0,71071.0,0.07035218]
[1773535202496,0.0927299,71080.0,71062.0,0.0014]
[1773535202714,0.09283747,71080.0,71063.0,0.0014]
[1773535204253,0.05960433,71080.0,71059.0,0.07052593]
[1773535204440,0.07034525,71078.0,71060.0,0.0014]
[1773535204581,0.0927299,71077.0,71060.0,0.0014]
[1773535205400,0.0927299,71077.0,71059.0,0.0001626]
[1773535205605,0.0927299,71077.0,71060.0,0.0014]
[1773535209935,0.0927299,71086.0,71067.0,0.05938677]
[1773535210124,0.0927299,71086.0,71067.0,0.00010757]
[1773535210298,0.0941299,71086.0,71068.0,0.0014]
[1773535211745,0.09434991,71086.0,71068.0,0.0014]
[1773535211971,0.0927299,71084.0,71069.0,0.07035416]
[1773535213311,0.05938677,71080.0,71040.0,0.00034]
[1773535213516,0.05938677,71070.0,71054.0,0.0014]
[1773535213712,0.0927299,71068.0,71054.0,0.0014]
[1773535213964,0.0927299,71066.0,71052.0,0.07037099]
[1773535214143,0.0927299,71066.0,71055.0,0.0014]
[1773535215576,0.0927299,71066.0,71054.0,0.001]
[1773535215754,0.0927299,71066.0,71051.0,0.07037186]
[1773535215755,0.0927299,71066.0,71051.0,0.0014]
[1773535216369,0.0927299,71064.0,71052.0,0.07037099]
[1773535216542,0.0927299,71062.0,71052.0,0.07037099]
[1773535218281,0.16309151,71062.0,71052.0,0.07037099]
[1773535218853,0.16309151,71062.0,71055.0,0.0002]
[1773535219641,0.16309151,71062.0,71055.0,0.07056755]
[1773535221283,0.14508098,71062.0,71055.0,0.07056755]
[1773535221877,0.14508098,71062.0,71051.0,0.04364352]
[1773535222857,0.16545328,71061.0,71052.0,0.07037099]
[1773535224003,0.09509104,71061.0,71051.0,0.04364352]
[1773535226099,0.1544927,71061.0,71051.0,0.04364352]
[1773535227492,0.16544432,71070.0,71051.0,0.04364352]
[1773535227700,0.07034725,71076.0,71052.0,0.07672047]
[1773535227897,0.13005803,71080.0,71053.0,0.07672047]
[1773535227898,0.16562546,71077.0,71053.0,0.07672047]
[1773535228654,0.07053261,71077.0,71061.0,0.07670891]
[1773535228788,0.07053261,71077.0,71062.0,0.07832892]
[1773535229195,0.00022001,71070.0,71062.0,0.07832892]
[1773535229412,0.07053261,71077.0,71062.0,0.07832892]
[1773535230114,0.07053261,71077.0,71062.0,0.07910891]
[1773535230675,0.0001862,71077.0,71063.0,0.0703601]
[1773535231267,0.09509104,71076.0,71063.0,0.0703601]
[1773535233135,0.16543857,71076.0,71063.0,0.0703601]
[1773535237291,0.07034753,71076.0,71065.0,0.0003517]
[1773535238522,0.07056754,71076.0,71066.0,0.07035713]
[1773535239888,0.07032784,71096.0,71066.0,0.07035713]
[1773535239889,0.05938677,71090.0,71067.0,0.25496493]
[1773535240086,0.09509104,71079.0,71067.0,0.00010757]
[1773535240834,0.09509104,71079.0,71068.0,0.0014]
[1773535241256,0.09509104,71079.0,71067.0,0.00010757]
[1773535241461,0.09509104,71079.0,71069.0,0.0014]
[1773535241895,0.09509104,71079.0,71070.0,0.0014]
[1773535242122,0.1668323,71083.0,71070.0,0.0014]
[1773535242338,0.09509104,71082.0,71070.0,0.0014]
[1773535242980,0.07034168,71082.0,71071.0,0.07035218]
[1773535243225,0.09509104,71081.0,71071.0,0.07035218]
[1773535248538,0.09531105,71081.0,71071.0,0.07035218]
[1773535252671,0.00022001,71089.0,71072.0,0.07753668]
[1773535254753,0.00022001,71089.0,71073.0,0.1478191]
[1773535255184,0.00022001,71089.0,71073.0,0.0703502]
[1773535255378,0.00022001,71089.0,71074.0,0.07743321]
[1773535255926,0.07033339,71090.0,71074.0,0.07743321]
[1773535256797,0.07033247,71091.0,71075.0,0.07034822]
[1773535256966,0.07033247,71091.0,71076.0,0.0014]
[1773535258806,0.07033247,71091.0,71077.0,0.07034624]
[1773535260287,0.16268952,71091.0,71077.0,0.07034624]
[1773535261287,0.07033247,71091.0,71077.0,0.07034624]
[1773535261484,0.16268952,71091.0,71077.0,0.07034624]
[1773535261725,0.07033247,71091.0,71077.0,0.07034624]
[1773535261925,0.09235705,71090.0,71077.0,0.07034624]
[1773535263337,0.16269055,71090.0,71077.0,0.07034624]
[1773535264658,0.09235705,71089.0,71077.0,0.07034624]
[1773535266843,0.08870783,71089.0,71077.0,0.07034624]
[1773535267257,0.08870783,71089.0,71076.0,0.07174624]
[1773535267258,0.07033634,71087.0,71067.0,0.00010757]
[1773535267576,0.09235705,71079.0,71067.0,0.00010757]
[1773535267802,0.09235705,71079.0,71067.0,0.00150757]
[1773535268340,0.09235705,71079.0,71067.0,0.00010757]
[1773535268519,0.09235705,71079.0,71066.0,0.0014]
[1773535268726,0.09246462,71079.0,71066.0,0.0014]
[1773535270231,0.07034525,71078.0,71065.0,0.07070883]
[1773535270429,0.09235705,71077.0,71066.0,0.0014]
[1773535270637,0.09235705,71077.0,71065.0,0.07070883]
[1773535271200,0.09235705,71077.0,71065.0,0.07210883]
[1773535271864,0.09235705,71077.0,71065.0,0.07230883]
[1773535272473,0.09235705,71075.0,71065.0,0.07230883]
[1773535272947,0.09235705,71075.0,71065.0,0.07090883]
[1773535273530,0.07034723,71076.0,71065.0,0.07090883]
[1773535273937,0.07034723,71077.0,71065.0,0.07090883]
[1773535274146,0.00010757,71079.0,71066.0,0.08238448]
[1773535274344,0.07033634,71087.0,71071.0,0.08238448]
[1773535274517,0.09257706,71090.0,71073.0,0.08238448]
[1773535274730,0.09257706,71090.0,71074.0,0.08238448]
[1773535274731,0.00022001,71090.0,71074.0,0.08238448]
[1773535274934,0.00022001,71090.0,71076.0,0.08238448]
[1773535276262,0.00022001,71090.0,71077.0,0.07034624]
[1773535276474,0.00022001,71090.0,71078.0,0.0014]
[1773535277029,0.00022001,71090.0,71078.0,0.0836874]
[1773535277779,0.00022128,71094.0,71080.0,0.05936053]
[1773535277978,0.00022128,71094.0,71081.0,0.08201779]
[1773535278761,0.00022128,71094.0,71082.0,0.07034129]
[1773535279485,0.00022128,71094.0,71082.0,0.15226094]
[1773535280953,0.07054555,71098.0,71082.0,0.15226094]
[1773535282459,0.00022001,71094.0,71082.0,0.15226094]
[1773535282682,0.07054555,71098.0,71082.0,0.15226094]
[1773535286671,0.08896217,71097.0,71081.0,0.07054179]
[1773535288565,0.07032744,71096.0,71081.0,0.07054179]
[1773535291175,0.07054745,71096.0,71081.0,0.07054179]
[1773535292064,0.07054745,71096.0,71081.0,0.07034179]
[1773535293086,0.15950962,71096.0,71081.0,0.07034179]
[1773535296525,0.15950962,71096.0,71080.0,0.07034228]
[1773535298297,0.08896217,71095.0,71080.0,0.07034228]
[1773535299298,0.07032942,71094.0,71080.0,0.07034228]
[1773535300624,0.07032942,71094.0,71080.0,0.07054228]
[1773535302330,0.07032942,71094.0,71076.0,0.02579651]
[1773535302331,0.05936053,71090.0,71073.0,0.0002]
[1773535302652,0.05936053,71090.0,71072.0,0.1684296]
[1773535302653,0.08896217,71089.0,71074.0,0.0014]
[1773535303732,0.08896217,71089.0,71071.0,0.00010757]
[1773535303733,0.05936053,71084.0,71071.0,0.00010757]
[1773535303971,0.09036217,71083.0,71066.0,0.07055709]
[1773535304120,0.08896217,71079.0,71066.0,0.07055709]
[1773535306329,0.07034525,71078.0,71066.0,0.07055709]
[1773535306521,0.08896217,71077.0,71066.0,0.07055709]
[1773535308373,0.08896217,71075.0,71066.0,0.07055709]
[1773535308773,0.08876731,71075.0,71066.0,0.07055709]
[1773535309245,0.08876731,71075.0,71067.0,0.0014]
[1773535310313,0.07034921,71074.0,71067.0,0.0014]
[1773535311933,0.07034426,71079.0,71066.0,0.07055709]
[1773535312137,0.09339702,71078.0,71067.0,0.0014]
[1773535315858,0.09339702,71076.0,71067.0,0.0014]
[1773535317662,0.09361703,71076.0,71067.0,0.0014]
[1773535317867,0.16374524,71075.0,71067.0,0.0014]
[1773535318824,0.09339702,71074.0,71067.0,0.0014]
[1773535318972,0.09339702,71074.0,71060.0,0.07176275]
[1773535319775,0.09339702,71074.0,71061.0,0.0014]
[1773535319996,0.0703502,71073.0,71061.0,0.07176169]
[1773535320196,0.09339702,71072.0,71061.0,0.07176169]
[1773535320565,0.09339702,71070.0,71061.0,0.0014]
[1773535320736,0.09339702,71070.0,71060.0,0.0014]
[1773535321257,0.09339702,71070.0,71058.0,0.07056473]
[1773535321412,0.09339702,71070.0,71060.0,0.0014]
[1773535322253,0.07035416,71069.0,71058.0,0.07056473]
[1773535322458,0.09339702,71068.0,71060.0,0.0014]
[1773535323126,0.09339702,71068.0,71058.0,0.07056473]
[1773535323298,0.09339702,71068.0,71060.0,0.0014]
[1773535324102,0.09339702,71068.0,71058.0,0.07056473]
[1773535324306,0.09339702,71068.0,71059.0,0.0014]
[1773535324710,0.16375316,71067.0,71060.0,0.0014]
[1773535325130,0.16375316,71067.0,71058.0,0.07056473]
[1773535325454,0.16375316,71067.0,71059.0,0.0014]
[1773535325767,0.16375316,71067.0,71060.0,0.0014]
[1773535327691,0.16375316,71067.0,71060.0,0.07036267]
[1773535327839,0.16375316,71067.0,71061.0,0.0014]
[1773535328664,0.16375316,71067.0,71059.0,0.07036406]
[1773535328870,0.16375316,71067.0,71061.0,0.0014]
[1773535329661,0.16375316,71067.0,71059.0,0.07036406]
[1773535329893,0.16375316,71067.0,71061.0,0.0014]
[1773535330671,0.16375316,71067.0,71060.0,0.07036256]
[1773535330864,0.16375316,71067.0,71061.0,0.0014]
[1773535331129,0.16375316,71067.0,71059.0,0.07036406]
[1773535331436,0.16375316,71067.0,71060.0,0.0014]
[1773535331641,0.16375316,71067.0,71059.0,0.07036406]
[1773535331872,0.16375316,71067.0,71060.0,0.0014]
[1773535332249,0.16375316,71067.0,71061.0,0.0014]